Cogmind - Beta 14 @@@ ROGUE MODE // 2024.12.18 @ 07:45:19 Player: The Gourd Result: Destroyed by D-53 Grenadier with Mini Grenade Launcher Performance ------------- Evolutions (0) 0 Regions Visited (4) 800 Robots Destroyed (15) 75 Value Destroyed (308) 308 Prototype IDs (23) 460 Alien Tech Used (0) 0 Bonus (335) 335 TOTAL SCORE: 1978 Bonus ------- Follower Combat Kills 35 Aligned with FarCom 300 Cogmind --------- Core Integrity 0/250 Matter 239/300 Energy 84/100 System Corruption 0% Temperature Cool (2) Movement Treading (240) Ox1 Location -9/Mines Parts ------- > --- POWER (1) -------- (None) > --- PROPULSION (2) --- Light Treads Light Treads > --- UTILITY (2) ------ High-capacity Storage Unit Seismic Detector > --- WEAPON (2) ------- Mining Claw > --- INVENTORY (20) --- Light Treads Compact Wheel Flying Fortress v7 Medium Storage Unit High-capacity Matter Pod (200) Sensor Array Signal Interpreter Improved Terrain Scanner Light Armor Plating Assault Rifle Assault Rifle Light Assault Rifle Peak State ------------ > --- POWER ------------ Ion Engine > --- PROPULSION ------- Light Treads Wheel > --- UTILITY ---------- High-capacity Storage Unit Seismic Detector > --- WEAPON ----------- Assault Rifle Assault Rifle > --- INVENTORY -------- Light Treads Light Treads Light Treads Compact Wheel Flying Fortress v7 Medium Storage Unit Sensor Array Signal Interpreter Improved Terrain Scanner Light Armor Plating Light Assault Rifle Grenade Launcher Grenade Launcher Mining Claw [Rating: 11] Favorites ----------- Power Ion Engine Engine Ion Engine Propulsion Light Treads Treads Light Treads Wheel Wheel Utility Seismic Detector Device Seismic Detector Storage High-capacity Storage Unit Weapon Assault Rifle Ballistic Gun Assault Rifle Launcher Grenade Launcher Slashing Weapon Mining Claw Build | -11 -10 -10 -10 -9 ------- Run | Yrd Mat Min Exi Min Slots Evolved . | . . . . . Power . | . . . . . Propulsion . | . . . . . Utility . | . . . . . Weapon . | . . . . . Parts Attached 20 | 6 9 . . 5 Power 2 | 1 1 . . . Engine 2 | 1 1 . . . Core . | . . . . . Reactor . | . . . . . Propulsion 6 | 2 2 . . 2 Treads 5 | 1 2 . . 2 Leg . | . . . . . Wheel 1 | 1 . . . . Hover . | . . . . . Flight . | . . . . . Utility 5 | 1 4 . . . Device 2 | . 2 . . . Storage 3 | 1 2 . . . Processor . | . . . . . Hackware . | . . . . . Protection . | . . . . . Artifact . | . . . . . Weapon 7 | 2 2 . . 3 Energy Gun . | . . . . . Energy Cannon . | . . . . . Ballistic Gun 3 | 2 1 . . . Ballistic Cannon . | . . . . . Launcher 2 | . . . . 2 Special Weapon . | . . . . . Impact Weapon . | . . . . . Slashing Weapon 2 | . 1 . . 1 Piercing Weapon . | . . . . . Special Melee Weapon . | . . . . . Unidentified Prototypes . | . . . . . Parts Lost 5 | . . . . 5 Power 1 | . . . . 1 Propulsion 2 | . . . . 2 Utility . | . . . . . Weapon 2 | . . . . 2 Highest Loss Streak 5 | . . . . 5 To Critical Strikes . | . . . . . Average Slot Usage (%) 99 | . 99 100 100 79 Engine 13 | . 14 14 14 5 Treads 14 | . 14 14 14 22 Wheel 13 | . 14 14 14 5 Device 13 | . 13 14 14 14 Storage 14 | . 14 14 14 14 Ballistic Gun 27 | . 26 28 28 8 Peak Build Rating 11 | 6 8 8 11 11 Average Rating 8 | 5 7 8 9 9 On Entrance 6 | . 6 8 8 11 Naked Turns . | . . . . . Heaviest Build 50 | 12 50 50 50 50 Greatest Support 40 | 20 20 10 10 40 Greatest Overweight (x) 4 | 3 4 4 4 4 Average Overweight (x) 3 | 1 . 4 4 2 Largest Inventory Capacity 20 | 8 20 20 20 20 Average Capacity 16 | 7 11 20 20 20 Most Carried 19 | 7 9 17 19 18 Average Carried 12 | 2 8 13 17 17 Final Capacity 20 | 8 20 20 20 20 Final Carried 18 | 7 9 17 18 15 Class Distribution -------------------- 100% | Mutant Dominant Class ---------------- Mutant | -10/Materials Mutant | -10/Mines Mutant | -10/Exiles Mutant | -9/Mines Resources | -11 -10 -10 -10 -9 ----------- Run | Yrd Mat Min Exi Min Matter Collected 573 | 272 280 21 . . Remotely . | . . . . . Salvage Created 510 | 106 397 . . 7 Parts 32 | 5 27 . . . Haulers Intercepted 1 | . 1 . . . Recyclers Shooed . | . . . . . Parts Field Recycled . | . . . . . Retrieved Matter . | . . . . . Parts Self-Destructed . | . . . . . Prevented . | . . . . . Kills | -11 -10 -10 -10 -9 ------- Run | Yrd Mat Min Exi Min Combat Hostiles Destroyed 18 | . 11 . . 7 Guns 11 | . 11 . . . AOE 7 | . . . . 7 Classes Destroyed 7 | 2 4 . . 1 Tunneler 1 | 1 . . . . Hauler 1 | . 1 . . . Recycler 1 | 1 . . . . Operator 1 | . 1 . . . Swarmer 5 | . 5 . . . Grunt 6 | . 6 . . . Assembled 7 | . . . . 7 Best Kill Streak 7 | 2 3 . . 7 Combat Bots Only 7 | . 3 . . 7 Max Kills in Single Turn 4 | 1 1 . . 4 Gunslinging . | . . . . . Exploded 4 | . . . . 4 Melee . | . . . . . Uniques/NPCs Destroyed . | . . . . . Combat | -11 -10 -10 -10 -9 -------- Run | Yrd Mat Min Exi Min Hostile Shots Fired 90 | . 47 8 . 35 Missed 30 | . 18 3 . 9 Damage Taken 1020 | . 314 40 . 666 Core 268 | . 94 15 . 159 Absorbed by Shields . | . . . . . Regen/Repaired (Parts) 13 | . 13 . . . Core Remaining (%) 100 | 100 . . . . Volleys Fired 41 | 2 36 . . 3 Largest 2 | 2 2 . . 2 Hottest 60 | 40 40 . . 60 Shots Fired 80 | 4 72 . . 4 Gun 76 | 4 72 . . . Cannon . | . . . . . Launcher 4 | . . . . 4 Special . | . . . . . Kinetic 76 | 4 72 . . . Thermal . | . . . . . Explosive 4 | . . . . 4 Electromagnetic . | . . . . . Robot Hit Streak 12 | 4 10 . . 12 Robot Miss Streak 3 | . 3 . . 1 Penetration Max . | . . . . . Secondary Targets . | . . . . . Shots Hit Robots 54 | 4 47 . . 3 Core Hits 36 | 2 20 . . 14 Critical Kills . | . . . . . Critical Parts Destroyed . | . . . . . Critical Strikes . | . . . . . Melee Attacks 5 | . 5 . . . Impact . | . . . . . Slashing 5 | . 5 . . . Piercing . | . . . . . Sneak Attacks . | . . . . . Combat Hostiles . | . . . . . Follow-up Attacks . | . . . . . Damage Inflicted 1189 | 59 586 . . 544 Guns 644 | 59 585 . . . Cannons . | . . . . . Explosions 538 | . . . . 538 Melee . | . . . . . Ramming 7 | . 1 . . 6 Kinetic 644 | 59 585 . . . Thermal . | . . . . . Explosive 538 | . . . . 538 Electromagnetic . | . . . . . Impact . | . . . . . Slashing . | . . . . . Piercing . | . . . . . Highest Corruption . | . . . . . Average Corruption . | . . . . . Corruption Purged . | . . . . . Corruption Blocked . | . . . . . Overload Shots . | . . . . . Overflow Damage 3 | . . . . 3 Projectiles . | . . . . . Explosions 3 | . . . . 3 Melee . | . . . . . Knockbacks . | . . . . . Impact . | . . . . . Kinetic . | . . . . . Secondary . | . . . . . Self-Inflicted Damage 157 | . . . . 157 Shots 4 | . . . . 4 Rammed 2 | . 1 . . 1 Targets Rammed 2 | . 1 . . 1 Kicked . | . . . . . Crushed . | . . . . . Highest Temperature 10 | . 2 . . 10 Average Temperature 4 | . 2 . . 10 Received Heat Transfer 198 | . 138 . . 60 Siege Activations . | . . . . . Robots Corrupted . | . . . . . Combat Hostiles . | . . . . . Parts Fried . | . . . . . Impact Corruptions . | . . . . . Robots Melted . | . . . . . Combat Hostiles . | . . . . . Parts Melted . | . . . . . Heat Transferred . | . . . . . Parts Sabotaged . | . . . . . Parts Stolen . | . . . . . Parts Stripped . | . . . . . Power Chain Reactions . | . . . . . Alert | -11 -10 -10 -10 -9 ------- Run | Yrd Mat Min Exi Min Peak Influence 254 | 10 254 218 . 18 Initial 84 | . 6 84 . . Average 76 | 1 121 51 . . Maximum Alert Level 1 | . 1 1 . . Low Security (%) 95 | 100 90 98 . 100 Level 1 4 | . 9 1 . . Level 2 . | . . . . . Level 3 . | . . . . . Level 4 . | . . . . . Level 5 . | . . . . . High Security . | . . . . . Max Security . | . . . . . Squads Dispatched 3 | . 3 . . . Investigation 1 | . 1 . . . Extermination . | . . . . . Reinforcement 2 | . 2 . . . Assault . | . . . . . Garrison . | . . . . . Intercept . | . . . . . Searches Triggered . | . . . . . Construction Impeded . | . . . . . Haulers Reinforced . | . . . . . Active Scanning Responses . | . . . . . Cargo Convoy Interrupts . | . . . . . Stealth | -11 -10 -10 -10 -9 --------- Run | Yrd Mat Min Exi Min Distress Signals . | . . . . . Communications Jammed . | . . . . . Distress Signals . | . . . . . Times Spotted 46 | . 17 6 . 23 Peak Tracking Total 18 | . 4 3 . 18 Tactical Retreats 3 | . 2 . . 1 Traps | -11 -10 -10 -10 -9 ------- Run | Yrd Mat Min Exi Min Traps Triggered 1 | . 1 . . . Indirectly . | . . . . . Trap Hack Attempts . | . . . . . Triggered . | . . . . . Disarmed . | . . . . . Reprogrammed . | . . . . . Reused . | . . . . . Traps Extracted . | . . . . . Installed . | . . . . . Triggered . | . . . . . Most Traps Carried 4 | . . 4 4 . Machines | -11 -10 -10 -10 -9 ---------- Run | Yrd Mat Min Exi Min Machines Disabled 1 | . 1 . . . Max in Single Turn 1 | . 1 . . . Machines Repaired . | . . . . . Machines Dismantled . | . . . . . Machines Sabotaged . | . . . . . Overloaded Fab Kills . | . . . . . Hacking | -11 -10 -10 -10 -9 --------- Run | Yrd Mat Min Exi Min Machines Accessed 8 | . 5 . 3 . Terminals 4 | . 4 . . . Fabricators . | . . . . . Repair Stations 1 | . 1 . . . Recycling Units . | . . . . . Scanalyzers . | . . . . . Garrison Access . | . . . . . Total Hacks 27 | . 15 . 12 . Successful 18 | . 6 . 12 . Failed 9 | . 9 . . . Catastrophic 4 | . 4 . . . Database Lockouts . | . . . . . Manual 5 | . 4 . 1 . Terminals 12 | . 12 . . . Fabricators . | . . . . . Repair Stations 3 | . 3 . . . Recycling Units . | . . . . . Scanalyzers . | . . . . . Garrison Access . | . . . . . Terminal Hacks 16 | . 4 . 12 . Record 11 | . . . 11 . Level Access Points 1 | . 1 . . . Locate Traps 1 | . 1 . . . Hauler Manifests 1 | . 1 . . . Registered Components 1 | . 1 . . . Derelict Proto ID Bank 1 | . . . 1 . Fabricator Hacks . | . . . . . Repair Station Hacks 2 | . 2 . . . Scan Component 1 | . 1 . . . Repair 1 | . 1 . . . Recycling Unit Hacks . | . . . . . Scanalyzer . | . . . . . Garrison Access Hacks . | . . . . . Unauthorized Hacks . | . . . . . Terminals . | . . . . . Fabricators . | . . . . . Repair Stations . | . . . . . Recycling Units . | . . . . . Scanalyzers . | . . . . . Garrison Access . | . . . . . Data Cores Recovered . | . . . . . Used . | . . . . . Hacking Detections 3 | . 3 . . . Full Trace Events 1 | . 1 . . . Feedback Events . | . . . . . Feedback Blocked . | . . . . . Robot Schematics Acquired . | . . . . . Robots Built . | . . . . . Authchips . | . . . . . Time . | . . . . . Total Robot Build Rating . | . . . . . Part Schematics Acquired . | . . . . . Parts Built . | . . . . . Authchips . | . . . . . Time . | . . . . . Total Part Build Rating . | . . . . . Parts Repaired 1 | . 1 . . . Time 26 | . 26 . . . Parts Recycled . | . . . . . Recycled Matter . | . . . . . Retrieved Matter . | . . . . . Retrieved Components . | . . . . . Parts Scanalyzed . | . . . . . Part Schematics Acquired . | . . . . . Parts Damaged . | . . . . . Bothacking | -11 -10 -10 -10 -9 ------------ Run | Yrd Mat Min Exi Min Used RIF Installer . | . . . . . Robots Hacked . | . . . . . Non-combat . | . . . . . Combat . | . . . . . Robot Hacks Applied . | . . . . . Relay Couplers Released . | . . . . . Fabnet Peak Effective % . | . . . . . Robots Rewired . | . . . . . Allies Hacked . | . . . . . Hacks Repelled . | . . . . . Allies | -11 -10 -10 -10 -9 -------- Run | Yrd Mat Min Exi Min Total Allies 2 | . . 2 . . Largest Group 2 | . . 2 2 . Highest-Rated Group 35 | . . 35 35 . Highest-Rated Ally 31 | . . 31 31 . Total Orders . | . . . . . Ally Attacks 10 | . . 10 . . Total Damage 148 | . . 148 . . Kills 5 | . . 5 . . Allies Corrupted . | . . . . . Allies Melted . | . . . . . Intel | -11 -10 -10 -10 -9 ------- Run | Yrd Mat Min Exi Min Robot Analysis Total . | . . . . . Derelict Logs Recovered 1 | . . 1 . . Drone Launches . | . . . . . Drone Recoveries . | . . . . . Exploration | -11 -10 -10 -10 -9 ------------- Run | Yrd Mat Min Exi Min Turns Passed 2385 | 89 766 971 512 47 Spaces Moved 1474 | 62 385 650 360 17 Core 11 | 11 . . . . Treads 245 | 2 233 . . 10 Legs . | . . . . . Wheels 1218 | 49 152 650 360 7 Hover . | . . . . . Flight . | . . . . . Fastest Speed 50 | 50 95 140 140 140 Average Speed 139 | 105 140 140 140 198 Slowest Speed 240 | 200 160 140 140 240 Overloaded Moves . | . . . . . Propulsion Burnouts . | . . . . . Robots Hopped . | . . . . . Cave-ins Triggered . | . . . . . Exploration Rate (%) 51 | 5 75 96 72 9 Regions Visited 4 Branch Regions 3 Pre-discovered Areas 1 | . . . 1 . Known Exits Taken . | . . . . . Unknown Exits Taken 4 | 1 1 1 1 . Scrap Searched 3 | . . 3 . . Spaces Dug 3 | . 3 . . . Terrain Destroyed 41 | . 3 . . 38 Melee 3 | . 3 . . . Projectile . | . . . . . AOE 38 | . . . . 38 Terrain Rammed . | . . . . . Walls Destroyed . | . . . . . Machines Disabled . | . . . . . Actions | -11 -10 -10 -10 -9 --------- Run | Yrd Mat Min Exi Min Total 1712 | 78 526 711 371 26 Wait 138 | 2 84 52 . . Move 1470 | 61 384 649 359 17 Hop . | . . . . . Pick Up 25 | 7 4 9 5 . Fast Attach 7 | 6 1 . . . Attach 4 | . 1 . . 3 Detach . | . . . . . Swap 9 | . 7 . . 2 Drop 11 | . 3 1 7 . Fire 41 | 2 36 . . 3 Melee 5 | . 5 . . . Ram . | . . . . . Kick . | . . . . . Crush 2 | . 1 . . 1 Escape Stasis . | . . . . . Rewire . | . . . . . Trap . | . . . . . Miscellaneous . | . . . . . Route ------- -11/Scrapyard -10/Materials (discovered 5 exits: *Mat x3 / [*Min x2]) -10/Mines (discovered 4 exits: *Mat x2 / *Exi / Sub) -10/Exiles (discovered 2 exits: [*Min x2]) -9/Mines History --------- Turn | Location | Event 33 | -11/Scrapyard | Discovered new exit (range 14) 90 | -11/Scrapyard | Entered Materials 185 | -10/Materials | Discovered new exit (range 12) 214 | -10/Materials | Identified exit to Materials 303 | -10/Materials | Build established: Mutant 352 | -10/Materials | Repaired Seismic Detector 513 | -10/Materials | Discovered new exit (range 11) 719 | -10/Materials | Discovered new exit (range 15) 856 | -10/Materials | Entered Mines 1184 | -10/Mines | Deemed a non-threat by the Exiles lab entrance 1184 | -10/Mines | Discovered new exit (range 5) 1226 | -10/Mines | Discovered exit to Materials (range 10) 1433 | -10/Mines | Identified exit to Subcaves 1443 | -10/Mines | Found a hidden stash of uninstalled traps 1699 | -10/Mines | Discovered exit to Materials (range 14) 1827 | -10/Mines | Entered Exiles 1827 | -10/Exiles | Accompanied by 2 allies 1848 | -10/Exiles | Discovered new exit (range 15) 1857 | -10/Exiles | Led the pair of lost Derelicts to a safe place 1865 | -10/Exiles | Met 8R-AWN 1886 | -10/Exiles | Met EX-HEX 1939 | -10/Exiles | Met EX-BIN 1959 | -10/Exiles | Aligned with FarCom system 1960 | -10/Exiles | Given EX-Vault access code 2000 | -10/Exiles | Opened EX-Vault 2006 | -10/Exiles | Found Flying Fortress v7 2033 | -10/Exiles | Warned to stay clear of 0b10 Research branches 2077 | -10/Exiles | Met EX-DEC 2082 | -10/Exiles | Learned location of Zion (-7) 2322 | -10/Exiles | Discovered new exit (range 12) 2339 | -10/Exiles | Left Exiles lab with Flying Fortress v7 2339 | -10/Exiles | Entered Mines 2340 | -9/Mines | Assembled infested the area 2353 | -9/Mines | Core integrity fell below 50% 2359 | -9/Mines | Core integrity fell below 20% 2378 | -9/Mines | Destroyed 7 combat bots 2386 | -9/Mines | Destroyed by D-53 Grenadier with Mini Grenade Launcher Last Messages --------------- 02361_ The unstable cave ceiling collapses. 02361_ as-03358 sneak attacks. 02361_ R-06 Scavenger system corrupted by crushing effect. 02361_ R-06 Scavenger knocked back. 02361_ as-90299 sneak attacks. 02361_ U-05 Engineer destroyed. 02361_ as-71451 destroyed. 02361_ as-03043 destroyed. 02362_ R-06 Scavenger system terminally corrupted. 02363_ as-17862 destroyed. 02363_ as-03358 destroyed. 02363_ as-90299 destroyed. 02366_ as-84308 destroyed. 02368_ as-82662 destroyed. 02369_ The unstable cave ceiling collapses. 02370_ Slammed into as-57257. 02371_ The unstable cave ceiling collapses. 02374_ Lgt. Treads destroyed. Map ----- +----------------------------------------------------+ | | | | | | | | | | | | | ?????????????????????????????????????????????????? | | ?????????????????????????????????????????????????? | | ?????????????????????????????????????????????????? | | ?????????????????????????????????????????????????? | | ?????????????????????????????????????????????????? | | ?????????????????????????????????????????????????? | | ?????????????????????????????????????????????????? | | ?????????????????????????????????????????????????? | | ?????????????????????????????????????????????????? | | ?????????????????????????????????????????????????? | | ?????????????????????????????????????????????????? | | ??????????????????????#####?????#????????????????? | | ?????????????????????## ###?? #????????????????? | | ????????????????????## ### #????????????????? | | ????????????????????# =% ?????????????????? | | ??????????#???????### ??????????????????? | | ????????### #????# #???????????????????? | | ??????%# ?### ## #????????????????????? | | ????? %** # ## #?????????????????????? | | ??????| %! % # @#??????????????????????? | | ?????? == " ## ##?????????????????????? | | ?????? % # # a #?????????????????????? | | ???????? ## #?????????????????????? | | ??????????# # # ## #?????????????????????? | | ??????????# # % ##d ##????????????????????? | | ??????????# #????????????????????? | | ???????????# # # ## #????????????????????? | | ??????????????# ## ##????????????????????? | | ????????????# ############?????????????????????? | | ????????????## ?????????????????????????????????? | | ?????????????# ??????????????????????????????????? | | ?????????????#???????????????????????????????????? | | ?????????????????????????????????????????????????? | | ?????????????????????????????????????????????????? | | ?????????????????????????????????????????????????? | | ?????????????????????????????????????????????????? | | ?????????????????????????????????????????????????? | | ?????????????????????????????????????????????????? | | ?????????????????????????????????????????????????? | | ?????????????????????????????????????????????????? | | ?????????????????????????????????????????????????? | | ?????????????????????????????????????????????????? | | ?????????????????????????????????????????????????? | | ?????????????????????????????????????????????????? | +----------------------------------------------------+ Best States ------------- Heat Dissipation 25 Energy Generation 10 Energy Capacity 250 Matter Stores 300 Matter Capacity 300 Sight Range 16 Terrain Scan Density 10 Evasion (%) 41 Recoil Reduction 2 Item Schematics ----------------- None Robot Schematics ------------------ None Fabricated ------------ Nothing Alien Tech Used ----------------- None Achievements -------------- None Challenges ------------ None Game ------ Seed SchematicMiniCompressor Manual? 0 Play Time 00:18:10 Cumulative 92.8 hours Start 2024.12.18 @ 07:28:37 End 2024.12.18 @ 07:45:19 Sessions 1 Manual Loads 0 Difficulty Rogue Special Mode None Game No. 64 Rogue 64 Adventurer 0 Explorer 0 Win Type - Total 1 Types 1/0/0/0/0/0/0/0/0 Lore% 24 Gallery% 47 Achievement% 45 Wizard Run 0 Options --------- Layout 2 ASCII 0 Keyboard 1 Movement Vi Keybinds 1 Fullscreen 1 Font 32/SmallcapsGlow Map View 50x44 Zoom Use 0% Tactical HUD 1 Map Filters NONE Filters NONE Steam 1 RUN: 4b1def54-9fa8-4dd1-bfc6-034fc85b389e